bitfinex-derivatives/quotes_ETHF0:USTF0_20241102
["timestamp","ask_amount","ask_price","bid_price","bid_amount"]
[1730522104455,3.55735528,2507.0,2506.9,0.27929]
[1730522104762,3.55735528,2507.0,2506.9,0.83643468]
[1730522105261,3.55735528,2507.0,2506.9,0.27929]
[1730522105767,3.55735528,2507.0,2506.9,0.83642929]
[1730522107360,3.55735528,2507.0,2506.9,0.83646315]
[1730522112356,3.55735528,2507.0,2506.9,0.27929]
[1730522112559,3.55735528,2507.0,2506.9,0.83652943]
[1730522116368,3.55735528,2507.0,2506.9,0.83654465]
[1730522119965,3.55735528,2507.0,2506.9,0.83657223]
[1730522123873,3.55735528,2507.0,2506.9,0.83666345]
[1730522124177,3.55735528,2507.0,2506.9,0.27929]
[1730522124475,3.55735528,2507.0,2506.9,0.83666069]
[1730522131168,3.55735528,2507.0,2506.9,0.83670239]
[1730522131374,3.55735528,2507.0,2506.9,1.39411468]
[1730522133877,0.43,2507.0,2506.9,1.39411468]
[1730522134174,3.56377022,2507.0,2506.9,1.39411468]
[1730522134373,0.43,2507.0,2506.9,1.39411468]
[1730522134882,0.43,2507.0,2506.9,1.39415207]
[1730522135070,0.43,2507.0,2506.9,0.83670239]
[1730522135275,0.43,2507.0,2506.9,1.39415135]
[1730522136189,0.43,2507.0,2506.9,0.83670239]
[1730522136387,0.43,2507.0,2506.9,1.39416292]
[1730522136580,0.43,2507.0,2506.9,0.83675053]
[1730522138686,0.43,2507.0,2506.9,0.8367455]
[1730522139887,3.56434999,2507.0,2506.9,0.8367455]
[1730522140282,0.43,2507.0,2506.9,0.8367455]
[1730522140583,3.5643624,2507.0,2506.9,0.8367455]
[1730522141385,0.43,2507.0,2506.9,0.8367455]
[1730522141788,0.43,2507.0,2506.9,0.27929]
[1730522141986,0.43,2507.0,2506.9,0.8367458]
[1730522142181,3.56439251,2507.0,2506.9,0.8367458]
[1730522142786,0.43,2507.0,2506.9,0.8367458]
[1730522143591,3.5643318,2507.0,2506.9,0.8367458]
[1730522143797,0.43,2507.0,2506.9,0.8367458]
[1730522144293,3.56433167,2507.0,2506.9,0.8367458]
[1730522144485,3.56432952,2507.0,2506.9,0.8367458]
[1730522144888,0.43,2507.0,2506.9,0.8367458]
[1730522146196,0.43,2507.0,2506.9,0.27929]
[1730522146487,0.43,2507.0,2506.9,0.83674874]
[1730522147493,3.56440701,2507.0,2506.9,0.83674874]
[1730522148597,0.43,2507.0,2506.9,0.83674874]
[1730522150696,3.56442391,2507.0,2506.9,0.83674874]
[1730522152998,0.43,2507.0,2506.9,0.27929]
[1730522153194,0.43,2507.0,2506.9,0.83675395]
[1730522153400,3.56436936,2507.0,2506.9,0.83675395]
[1730522154702,0.43,2507.0,2506.9,0.83675395]
[1730522155598,3.56409129,2507.0,2506.9,0.83675395]
[1730522157092,3.56409129,2507.0,2506.9,0.27929]
[1730522157291,3.56409129,2507.0,2506.9,0.83675114]
[1730522158709,0.43,2507.0,2506.9,0.83675114]
[1730522159100,3.56412328,2507.0,2506.9,0.83675114]
[1730522160502,3.56412328,2507.0,2506.9,0.27929]
[1730522160803,0.43,2507.0,2506.9,0.27929]
[1730522161204,3.56416536,2507.0,2506.9,0.83675237]
[1730522161605,0.43,2507.0,2506.9,0.83675237]
[1730522161806,0.70931,2507.0,2506.9,0.55746237]
[1730522162104,4.35789116,2507.0,2506.9,0.55746237]
[1730522162406,0.27934,2506.8,2506.7,0.27934]
[1730522162700,3.9349814,2506.8,2506.7,0.27934]
[1730522163003,3.9349814,2506.8,2506.2,1.04715252]
[1730522163004,0.27936,2506.6,2506.5,0.27936]
[1730522163203,0.27936,2506.6,2506.2,1.15026226]
[1730522163204,7.48932547,2506.6,2506.2,1.15026226]
[1730522163412,3.41063321,2506.5,2506.4,0.27938]
[1730522163703,7.40023321,2506.5,2506.4,0.27938]
[1730522164504,7.12086321,2506.5,2506.4,0.27938]
[1730522164707,7.40023321,2506.5,2506.4,0.27938]
[1730522165305,4.26897,2506.5,2506.4,0.27938]
[1730522165602,3.9896,2506.5,2506.1,1.42966226]
[1730522165809,0.2794,2506.2,2506.1,1.42966226]
[1730522166406,4.4247,2506.2,2506.1,0.27941]
[1730522166605,5.14661,2506.2,2506.1,0.27941]
[1730522166808,4.8672,2506.2,2506.1,0.27941]
[1730522169201,7.46941617,2506.2,2506.1,0.27941]
[1730522169907,4.8672,2506.2,2506.1,0.27941]
[1730522170303,7.74809069,2506.2,2506.1,0.27941]
[1730522173013,7.46869069,2506.2,2506.1,0.27941]
[1730522173209,4.8672,2506.2,2506.1,0.27941]
[1730522173410,8.075,2506.2,2506.1,0.27941]
[1730522173916,4.8672,2506.2,2506.1,0.27941]
[1730522174118,8.075,2506.2,2506.1,0.27941]
[1730522174913,8.3544,2506.2,2506.1,0.27941]
[1730522176709,5.1466,2506.2,2506.1,0.27941]
[1730522176909,10.15369963,2506.2,2506.1,0.27941]
[1730522178514,6.94589963,2506.2,2506.1,0.27941]
[1730522179420,10.15369963,2506.2,2506.1,0.27941]
[1730522180922,10.43309963,2506.2,2506.1,0.27941]
[1730522181917,7.22529963,2506.2,2506.1,0.27941]
[1730522182117,10.43309963,2506.2,2506.1,0.27941]
[1730522183226,8.3544,2506.2,2505.9,1.15026226]
[1730522183432,0.4591,2506.1,2505.9,1.15026226]
[1730522184626,0.4591,2506.1,2505.8,8.28432226]
[1730522185131,0.73851,2506.1,2505.8,8.28432226]
[1730522185318,3.94631,2506.1,2505.8,8.28432226]
[1730522186226,0.73851,2506.1,2505.8,8.28432226]
[1730522186427,3.94631,2506.1,2505.8,8.28432226]
[1730522186929,3.6669,2506.1,2505.8,8.56376226]
[1730522187518,3.94631,2506.1,2505.8,8.56376226]
[1730522188019,3.94631,2506.1,2505.8,8.84286226]
[1730522188227,0.73851,2506.1,2505.8,8.84286226]
[1730522188413,3.94631,2506.1,2505.8,8.84286226]
[1730522189029,3.94631,2506.1,2505.9,1.15026226]
[1730522190627,0.27942,2506.0,2505.9,1.15026226]
[1730522195118,0.27942,2506.0,2505.8,7.41316]
[1730522195119,0.27943,2505.9,2505.8,7.13406]
[1730522195517,2.35812963,2505.9,2505.8,7.13406]
[1730522195919,6.87132069,2505.9,2505.8,7.13406]
[1730522196121,4.26983,2505.9,2505.8,4.39406]
[1730522196323,4.26983,2505.9,2505.8,3.70046]
[1730522196626,7.40109321,2505.9,2505.8,3.70046]
[1730522200232,10.60889321,2505.9,2505.8,3.70046]
[1730522201130,10.60889321,2505.9,2505.8,1.66112]
[1730522201529,10.60889321,2505.9,2505.8,0.64475]
[1730522201732,0.27951,2505.2,2505.1,0.8624]
[1730522203741,1.15026226,2505.2,2505.0,0.2791]
[1730522204035,1.15026226,2505.2,2504.5,1.15026226]
[1730522204036,0.27955,2504.9,2504.8,0.4413]
[1730522205129,0.27958,2504.6,2504.5,0.8766]
[1730522205329,0.27958,2504.6,2504.5,1.3179]
[1730522208926,0.27958,2504.6,2504.5,2.46816226]
[1730522212437,3.2078,2504.7,2504.5,2.46816226]
[1730522213231,3.48737,2504.7,2504.5,1.3179]
[1730522214130,3.2078,2504.7,2504.5,1.3179]
[1730522214529,0.27956,2504.8,2504.5,1.3179]
[1730522215031,3.48736,2504.8,2504.5,1.3179]
[1730522215227,0.27957,2504.7,2504.5,1.3179]
[1730522215430,3.2078,2504.8,2504.5,1.3179]
[1730522215431,0.27958,2504.6,2504.5,0.4413]
[1730522215636,0.70548,2504.6,2504.5,0.4413]
[1730522216340,0.4259,2504.6,2504.5,0.4413]
[1730522219138,0.4259,2504.6,2504.5,0.72089]
[1730522220437,0.70548,2504.6,2504.5,0.4413]
[1730522220642,1.12788,2504.6,2504.5,0.4413]
[1730522221143,1.12788,2504.6,2504.5,0.72089]
[1730522222439,0.8483,2504.6,2504.5,0.72089]
[1730522223433,1.12788,2504.6,2504.5,0.72089]
[1730522223834,0.8483,2504.6,2504.5,0.72089]
[1730522224935,1.99856226,2504.6,2504.5,0.72089]
[1730522226645,3.2078,2504.7,2504.5,0.4413]
[1730522226844,3.48737,2504.7,2504.6,0.27958]
[1730522227944,0.27957,2504.7,2504.6,0.27958]
[1730522228145,3.48737,2504.7,2504.6,0.27958]
[1730522229649,0.27957,2504.7,2504.6,0.27958]
[1730522230242,3.48737,2504.7,2504.6,0.27958]
[1730522230752,0.27957,2504.7,2504.6,0.27958]
[1730522230947,3.48737,2504.7,2504.6,0.27958]
[1730522232041,8.35086226,2504.7,2504.2,0.4336]
[1730522232246,1.42987226,2504.3,2504.2,0.27962]
[1730522232748,2.77907226,2504.3,2504.2,0.27962]
[1730522234549,2.49946226,2504.3,2504.2,0.27962]
[1730522234950,2.49946226,2504.3,2504.2,0.72902]
[1730522236148,2.77907226,2504.3,2504.2,0.27962]
[1730522239753,0.27964,2504.1,2504.0,0.27964]
[1730522239957,4.63769226,2504.1,2504.0,0.27964]
[1730522240251,4.63769226,2504.1,2503.9,0.27965]
[1730522240252,0.27965,2504.0,2503.9,0.27965]
[1730522240452,0.71805,2504.0,2503.9,0.27965]
[1730522240757,0.27966,2503.9,2503.8,0.27966]
[1730522240955,1.16766,2503.9,2503.8,0.27966]
[1730522242856,0.888,2503.9,2503.8,0.27966]
[1730522243052,1.16766,2503.9,2503.8,0.27966]
[1730522244348,2.03826226,2503.9,2503.3,1.15026226]
[1730522244552,1.15026226,2503.4,2502.8,3.2078]
[1730522244758,1.15026226,2503.4,2503.3,0.27972]
[1730522244958,1.15026226,2503.4,2503.1,0.27975]
[1730522244959,4.41614358,2503.4,2503.1,0.27975]
[1730522245159,1.15026226,2503.2,2503.1,0.27975]
[1730522245855,2.07726132,2503.5,2503.4,0.27971]
[1730522246060,6.43532358,2503.6,2503.5,0.2797]
[1730522246256,4.63775226,2503.6,2503.5,0.2797]
[1730522246451,6.71518395,2503.6,2503.5,0.2797]
[1730522246655,6.43549395,2503.6,2503.5,0.2797]
[1730522247058,4.35806226,2503.6,2503.5,0.2797]
[1730522247265,6.43549395,2503.6,2503.5,0.2797]
[1730522247462,4.35806226,2503.6,2503.5,0.2797]
[1730522250558,1.15026226,2503.7,2503.6,0.27969]
[1730522251564,1.15026226,2503.7,2503.6,4.27409]
[1730522251768,1.15026226,2503.8,2503.7,0.27968]
[1730522252058,1.15026226,2503.8,2503.7,1.18648]
[1730522257255,1.15026226,2503.8,2503.7,0.27968]
[1730522258861,0.27968,2503.7,2503.6,0.27968]
[1730522259064,1.99726226,2503.7,2503.4,3.2078]
[1730522259262,1.15026226,2503.5,2503.4,3.48751]
[1730522260169,1.60396226,2503.6,2503.5,0.2797]
[1730522271283,1.88365226,2503.6,2503.5,0.2797]
[1730522271476,1.60396226,2503.6,2503.5,0.2797]
[1730522273375,1.88365226,2503.6,2503.5,0.2797]
[1730522274371,3.96108395,2503.6,2503.5,0.2797]
[1730522278478,1.88365226,2503.6,2503.5,0.2797]
[1730522278881,1.60396226,2503.6,2503.5,0.2797]
[1730522280484,4.20053891,2503.6,2503.5,0.2797]
[1730522281686,1.60396226,2503.6,2503.5,0.2797]
[1730522282083,3.68613702,2503.6,2503.5,0.2797]
[1730522282386,1.60396226,2503.6,2503.5,0.2797]
[1730522283391,3.44971845,2503.7,2503.5,3.9944]
[1730522283581,3.44971845,2503.7,2503.6,0.27969]
[1730522283891,4.59998071,2503.7,2503.6,0.27969]
[1730522286386,1.99726226,2503.7,2503.6,0.27969]
[1730522286586,2.27694226,2503.7,2503.6,0.27969]
[1730522286986,1.99726226,2503.7,2503.6,0.27969]
[1730522288792,1.99726226,2503.7,2503.3,3.6245]
[1730522288992,3.23549697,2503.4,2503.3,3.48752]
[1730522289193,3.23549697,2503.4,2503.3,4.92548878]
[1730522289396,1.15026226,2503.4,2503.3,4.04058491]
[1730522289887,1.15026226,2503.4,2503.3,4.9255561]
[1730522290087,1.15026226,2503.4,2503.3,4.92555693]
[1730522290486,3.75680564,2503.4,2503.3,4.0406661]
[1730522292692,3.75680564,2503.4,2503.3,0.8328661]
[1730522293188,1.15026226,2503.4,2503.3,0.8328661]
[1730522293586,3.75797262,2503.4,2503.3,0.8328661]
[1730522294390,3.75797262,2503.4,2503.3,0.83300807]
[1730522295281,1.15026226,2503.4,2503.3,0.83300807]
[1730522296580,3.75782389,2503.4,2503.3,0.83300807]
[1730522296779,1.15026226,2503.4,2503.3,0.83300807]
[1730522296993,1.42997226,2503.4,2503.3,0.83300807]
[1730522297488,1.15026226,2503.4,2503.3,0.83300807]
[1730522297690,1.15026226,2503.4,2503.3,0.83294562]
[1730522299588,1.42997226,2503.4,2503.3,0.83294562]
[1730522300091,1.15026226,2503.4,2503.3,0.27972]
[1730522301093,1.42997226,2503.4,2503.3,0.27972]
[1730522301289,1.15026226,2503.4,2503.3,0.27972]
[1730522303291,1.42997226,2503.4,2503.3,0.27972]
[1730522303690,1.15026226,2503.4,2503.3,0.27972]
[1730522305494,1.42997226,2503.4,2503.3,0.27972]
[1730522306795,1.15026226,2503.4,2503.3,0.27972]
[1730522307190,1.42997226,2503.4,2503.3,0.27972]
[1730522308191,5.42437226,2503.4,2503.3,0.27972]
[1730522309697,5.14466226,2503.4,2503.3,0.27972]
[1730522312992,1.15026226,2503.4,2503.3,0.27972]
[1730522315099,3.75553999,2503.4,2503.3,0.83265474]
[1730522317003,3.75553999,2503.4,2503.3,0.27972]
[1730522317604,1.15026226,2503.4,2503.3,0.27972]
[1730522318598,1.15026226,2503.4,2503.3,0.73512]
[1730522319201,3.75588552,2503.4,2503.3,0.73512]
[1730522319406,1.15026226,2503.4,2503.3,0.73512]
[1730522320906,1.15026226,2503.4,2503.3,1.15172]
[1730522321299,1.15026226,2503.4,2503.3,6.16081207]
[1730522321300,2.60555526,2503.4,2503.3,6.16081207]
[1730522321505,3.75581752,2503.5,2503.4,0.27971]
[1730522321906,3.75581752,2503.5,2503.4,0.83269684]
[1730522322608,3.75581752,2503.5,2503.4,0.27971]
[1730522323997,3.75581752,2503.5,2503.4,0.83270452]
[1730522324198,3.75581752,2503.5,2503.4,0.27971]
[1730522324599,3.75581752,2503.5,2503.4,4.82710294]
[1730522324811,1.15026226,2503.5,2503.4,4.82710294]
[1730522325107,3.75581752,2503.5,2503.4,4.82710294]
[1730522325311,1.15026226,2503.5,2503.4,4.82710294]
[1730522327105,1.15026226,2503.5,2503.4,4.27411]
[1730522327306,1.15026226,2503.5,2503.4,4.82707332]
[1730522328301,3.23476831,2503.5,2503.4,4.82707332]
[1730522328511,1.15026226,2503.5,2503.4,4.82707332]
[1730522330608,3.75581752,2503.5,2503.4,4.82707332]
[1730522330807,3.75581752,2503.5,2503.4,0.27971]
[1730522331106,3.75581752,2503.5,2503.4,1.10371]
[1730522331501,4.61351752,2503.5,2503.4,1.10371]
[1730522332408,4.61351752,2503.5,2503.4,1.65671686]
[1730522337702,4.61351752,2503.5,2503.4,1.10371]
[1730522338012,4.61351752,2503.5,2503.4,1.65678725]
[1730522340707,2.00796226,2503.5,2503.4,1.65678725]
[1730522341010,4.61351752,2503.5,2503.4,1.65675835]
[1730522341712,2.00796226,2503.5,2503.4,1.65675835]
[1730522341905,4.61351752,2503.5,2503.4,1.65675835]
[1730522342111,2.00796226,2503.5,2503.4,1.65675835]
[1730522342316,4.61351752,2503.5,2503.4,1.65675835]
[1730522342510,2.00796226,2503.5,2503.4,1.65675835]
[1730522342913,4.61351752,2503.5,2503.4,1.65675835]
[1730522343810,4.61351752,2503.5,2503.4,0.83275835]
[1730522344013,4.89321752,2503.5,2503.4,0.27971]
[1730522344213,2.28766226,2503.5,2503.4,0.83273985]
[1730522344410,2.00796226,2503.5,2503.4,0.27971]
[1730522345118,2.28766226,2503.5,2503.4,0.27971]
[1730522346518,2.00796226,2503.5,2503.4,0.27971]
[1730522347709,2.28766226,2503.5,2503.4,0.27971]
[1730522348317,2.00796226,2503.5,2503.4,0.27971]
[1730522350624,2.28766226,2503.5,2503.4,0.27971]
[1730522350926,2.00796226,2503.5,2503.4,0.27971]
[1730522356224,2.00796226,2503.5,2503.4,0.8328883]
[1730522356619,2.00796226,2503.5,2503.4,0.27971]
[1730522356924,2.00796226,2503.5,2503.4,0.8328953]
[1730522359125,2.00796226,2503.5,2503.4,0.27971]
[1730522359322,2.00796226,2503.5,2503.4,0.83296818]
[1730522363828,2.60764051,2503.6,2503.4,5.4329906]
[1730522364029,1.15026226,2503.7,2503.6,0.27969]
[1730522364030,1.59756226,2503.7,2503.6,0.27969]
[1730522364225,1.59756226,2503.7,2503.6,0.83294818]
[1730522365921,1.59756226,2503.7,2503.6,0.27969]
[1730522366121,1.59756226,2503.7,2503.6,0.83299248]
[1730522369424,1.59756226,2503.7,2503.6,0.83293968]
[1730522372228,1.59756226,2503.7,2503.6,1.27083968]
[1730522372524,1.59756226,2503.7,2503.6,1.27077533]
[1730522373132,1.59756226,2503.7,2503.6,0.71759]
[1730522373337,1.59756226,2503.7,2503.6,1.27076032]
[1730522374429,4.20440923,2503.7,2503.6,1.27076032]
[1730522376343,1.59756226,2503.7,2503.6,1.27076032]
[1730522376740,1.59756226,2503.7,2503.6,1.27068391]
[1730522377240,1.59756226,2503.7,2503.6,0.27969]
[1730522379542,1.87724226,2503.7,2503.6,0.27969]
[1730522382940,1.87724226,2503.7,2503.5,0.824]
[1730522382941,1.87724226,2503.7,2503.5,1.10369]
[1730522383141,0.71559,2503.6,2503.5,0.27969]
[1730522383337,0.71559,2503.6,2503.5,0.2797]
[1730522384237,0.4359,2503.6,2503.5,0.2797]
[1730522397042,0.4359,2503.6,2503.5,0.83289812]
[1730522398866,0.71559,2503.6,2503.5,0.2797]
[1730522399041,0.4359,2503.6,2503.5,0.2797]
[1730522401245,0.71559,2503.6,2503.5,0.2797]
[1730522401447,3.55916214,2503.6,2503.5,0.2797]
[1730522401640,3.83885214,2503.6,2503.5,0.2797]
[1730522402041,3.55916214,2503.6,2503.5,0.2797]
[1730522403552,3.55916214,2503.6,2503.3,0.824]
[1730522403752,1.15026226,2503.4,2503.2,0.4433]
[1730522403949,1.57336226,2503.3,2503.2,1.10373]
[1730522404250,2.02016226,2503.3,2503.2,1.65702955]
[1730522404650,1.15026226,2503.4,2503.2,1.37729955]
[1730522404850,4.7203244,2503.6,2503.5,0.2797]
[1730522405047,0.4468,2503.6,2503.5,0.2797]
[1730522405247,1.59706226,2503.6,2503.5,0.83290827]
[1730522406854,1.15026226,2503.6,2503.5,0.83290827]
[1730522409551,2.61463027,2503.7,2503.5,9.79080461]
[1730522409849,2.61463027,2503.9,2503.6,4.51530278]
[1730522410054,2.09197771,2503.8,2503.7,2.26234235]
[1730522410354,2.09197771,2503.8,2503.7,2.96832235]
[1730522410546,2.09197771,2503.8,2503.7,6.96272235]
[1730522411245,2.61463027,2504.0,2503.7,6.96272235]
[1730522411246,2.09197771,2503.9,2503.7,6.68258978]
[1730522411456,2.09197771,2503.8,2503.7,5.52438]
[1730522411656,2.09197771,2503.9,2503.8,0.27967]
[1730522411858,2.09197771,2503.9,2503.8,1.1643097]
[1730522412056,2.09197771,2503.9,2503.8,5.1579097]
[1730522412354,2.09197771,2503.9,2503.8,4.82617088]
[1730522412661,3.76489253,2504.0,2503.9,0.27966]
[1730522413054,3.76489253,2504.0,2503.9,4.27326]
[1730522413252,3.76489253,2504.0,2503.9,0.27966]
[1730522413759,3.76489253,2504.0,2503.9,4.27326]
[1730522414654,2.61463027,2504.0,2503.9,4.27326]
[1730522415357,3.76489253,2504.1,2504.0,0.27965]
[1730522419751,2.61463027,2504.1,2504.0,0.27965]
[1730522419951,2.61463027,2504.2,2504.1,0.27963]
[1730522420153,2.61463027,2504.2,2504.1,4.902]
[1730522420154,2.08782456,2504.2,2504.1,4.902]
[1730522420353,2.08782456,2504.3,2504.2,0.27962]
[1730522420559,2.97092456,2504.4,2504.3,0.27961]
[1730522422356,2.96999273,2504.4,2504.3,0.27961]
[1730522423264,2.97231665,2504.4,2504.3,0.27961]
[1730522423462,0.8831,2504.4,2504.3,0.27961]
[1730522423953,2.97219305,2504.4,2504.3,0.27961]
[1730522427463,0.8831,2504.4,2504.3,0.27961]
[1730522428464,2.08909305,2504.5,2504.4,0.2796]
[1730522429071,2.08909305,2504.5,2504.2,1.97426226]
[1730522429269,4.11305531,2504.6,2504.2,1.97426226]
[1730522429579,4.11305531,2504.6,2504.5,0.27959]
[1730522430774,2.02396226,2504.6,2504.5,0.27959]
[1730522430975,4.11056931,2504.6,2504.5,0.27959]
[1730522431174,2.02396226,2504.6,2504.5,0.27959]
[1730522432476,4.11019579,2504.6,2504.5,0.27959]
[1730522433577,4.11019579,2504.6,2504.2,0.824]
[1730522433578,4.38977579,2504.6,2504.2,0.824]
[1730522433882,1.15026226,2504.4,2504.3,1.10261]
[1730522435483,4.11224606,2504.6,2504.5,0.27959]
[1730522435686,4.39182606,2504.6,2504.5,0.27959]
[1730522435977,2.02396226,2504.6,2504.5,0.27959]
[1730522436277,2.30354226,2504.6,2504.3,0.823]
[1730522436482,2.08835751,2504.5,2504.4,0.2796]
[1730522437779,2.02396226,2504.6,2504.5,0.27959]
[1730522440789,0.8737,2504.6,2504.5,0.27959]
[1730522442392,2.30354226,2504.6,2504.5,0.27959]
[1730522442684,4.91818253,2504.6,2504.5,0.27959]
[1730522442886,0.27959,2504.5,2504.4,0.27959]
[1730522443087,4.35806226,2504.5,2504.4,0.27959]
[1730522443478,0.27962,2504.3,2504.0,0.27965]
[1730522443790,0.27962,2504.3,2503.9,4.0308]
[1730522443791,1.15026226,2504.2,2504.1,0.27963]
[1730522444092,2.04036226,2504.2,2504.1,0.27963]
[1730522444389,4.12872576,2504.2,2504.1,0.27963]
[1730522444684,4.12872576,2504.2,2503.9,3.2078]
[1730522444888,0.27964,2504.1,2504.0,0.27964]
[1730522445192,2.3680035,2504.1,2504.0,0.27964]
[1730522446180,2.0883635,2504.1,2504.0,0.27964]
[1730522446582,2.5313635,2504.1,2504.0,0.27964]
[1730522448283,0.443,2504.1,2504.0,0.27964]
[1730522449092,2.53159176,2504.1,2504.0,0.27964]
[1730522449293,0.443,2504.1,2504.0,0.27964]
[1730522450292,3.05763027,2504.1,2504.0,0.27964]
[1730522454097,2.61463027,2504.1,2504.0,0.70815]
[1730522454300,2.61463027,2504.1,2504.0,1.16005]
[1730522455488,3.06123027,2504.2,2504.0,6.02426226]
[1730522455689,3.06123027,2504.2,2504.1,0.73523]
[1730522455690,2.61463027,2504.2,2504.1,0.73523]
[1730522455896,2.61463027,2504.2,2504.1,4.72883]
[1730522456097,5.82243027,2504.3,2504.2,0.27962]
[1730522456699,3.2078,2504.3,2504.2,0.27962]
[1730522456896,5.82092586,2504.3,2504.2,0.27962]
[1730522457199,3.2078,2504.3,2504.2,0.27962]
[1730522458100,5.82100208,2504.3,2504.2,0.27962]
[1730522461796,5.82110091,2504.3,2504.2,0.27962]
[1730522462002,3.2078,2504.3,2504.2,0.27962]
[1730522464397,3.48741,2504.3,2504.2,0.27962]
[1730522464598,3.2078,2504.3,2504.2,0.27962]
[1730522464792,0.27962,2504.2,2504.1,0.27963]
[1730522465002,1.15026226,2504.2,2503.6,4.25439817]
[1730522465205,2.09050317,2503.7,2503.3,1.04659817]
[1730522465410,2.09008557,2503.6,2503.5,1.58106226]
[1730522465601,2.09008557,2503.6,2503.5,2.41353468]
[1730522465904,2.09008557,2503.7,2503.6,0.27969]
[1730522466098,2.09008557,2503.7,2503.6,2.55786242]
[1730522466297,2.09008557,2503.8,2503.7,0.27968]
[1730522466505,2.09008557,2503.9,2503.8,1.42993226]
[1730522466802,2.09008557,2503.9,2503.8,5.97630468]
[1730522467000,2.09008557,2504.0,2503.8,5.69663468]
[1730522467210,2.09008557,2504.0,2503.9,0.83243242]
[1730522467504,3.76286922,2504.0,2503.6,0.4577]
[1730522467698,2.09027191,2503.8,2503.7,0.83235749]
[1730522468106,3.39507191,2503.8,2503.7,0.83235749]
[1730522469007,2.95337191,2503.8,2503.7,1.65535749]
[1730522471209,2.95337191,2503.8,2503.7,1.10268]
[1730522471508,0.8631,2503.8,2503.7,1.10268]
[1730522472111,3.47570696,2503.8,2503.7,1.10268]
[1730522472309,0.8631,2503.8,2503.7,1.10268]
[1730522476100,4.62596922,2503.8,2503.7,0.27968]
[1730522476308,3.47570696,2503.8,2503.7,0.27968]
[1730522476504,2.52527572,2503.8,2503.7,1.42994226]
[1730522476806,2.09317572,2503.8,2503.7,1.98197137]
[1730522477009,0.9002,2504.1,2503.8,0.27967]
[1730522477010,2.09317572,2503.9,2503.8,0.27967]
[1730522477203,2.09317572,2504.1,2503.9,3.9936]
[1730522477401,2.09317572,2504.2,2504.1,0.27963]
[1730522477606,2.09317572,2504.3,2504.1,4.54562911]
[1730522477805,2.09317572,2504.3,2504.2,0.27962]
[1730522478503,2.09317572,2504.3,2504.2,1.42988226]
[1730522478708,2.09317572,2504.3,2504.2,5.42348226]
[1730522479407,2.09276358,2504.3,2504.2,5.14386226]
[1730522479607,2.09276358,2504.3,2504.2,5.42348226]
[1730522480715,2.09276358,2504.3,2504.2,1.10262]
[1730522481407,2.54276358,2504.3,2504.2,1.10262]
[1730522484714,2.54286285,2504.3,2504.2,1.10262]
[1730522485020,0.45,2504.3,2504.2,1.10262]
[1730522485516,2.54287458,2504.3,2504.2,1.10262]
[1730522492424,4.21286922,2504.3,2503.8,0.69917]
[1730522492630,2.092674,2504.1,2504.0,0.27965]
[1730522493037,4.66006922,2504.2,2504.0,0.27965]
[1730522493236,4.66006922,2504.2,2504.1,0.27963]
[1730522494238,3.50980696,2504.2,2504.1,0.27963]
[1730522494639,0.8972,2504.2,2504.1,0.27963]
[1730522494936,4.66006922,2504.2,2504.1,0.27963]
[1730522496955,3.50980696,2504.2,2504.1,0.27963]
[1730522498140,0.8972,2504.2,2504.1,0.27963]
[1730522498340,2.54905195,2504.2,2504.1,0.27963]
[1730522498537,2.09275195,2504.2,2504.1,0.70563]
[1730522501851,2.09275195,2504.2,2504.1,1.13183]
[1730522502141,2.09250407,2504.3,2504.1,9.75618941]
[1730522502443,1.15026226,2504.2,2504.1,0.27963]
[1730522502639,3.67996633,2504.2,2504.1,0.27963]
[1730522502841,2.52970407,2504.2,2504.1,0.27963]
[1730522503542,0.4372,2504.2,2504.1,0.83193613]
[1730522503739,2.52970407,2504.2,2504.1,0.27963]
[1730522503940,0.4372,2504.2,2504.1,0.83193828]
[1730522504138,0.4372,2504.2,2504.1,1.65793828]
[1730522504438,0.4372,2504.2,2504.1,1.10563]
[1730522504631,0.4372,2504.2,2504.1,2.07992812]
[1730522505434,2.09250407,2504.3,2504.1,1.80029812]
[1730522505636,2.09250407,2504.3,2504.2,0.70582]
[1730522506033,2.52800407,2504.4,2504.3,0.27961]
[1730522506535,0.4355,2504.4,2504.3,0.27961]
[1730522506730,2.5274776,2504.4,2504.3,0.27961]
[1730522506939,0.4355,2504.4,2504.3,0.27961]
[1730522507245,2.52747671,2504.4,2504.3,0.27961]
[1730522507736,0.4355,2504.4,2504.3,0.27961]
[1730522508244,2.52737202,2504.4,2504.3,0.27961]
[1730522508440,2.5273172,2504.4,2504.3,0.27961]
[1730522508742,0.4355,2504.4,2504.3,0.27961]
[1730522509137,2.52731942,2504.4,2504.3,0.27961]
[1730522512346,0.4355,2504.4,2504.3,0.27961]
[1730522517350,3.49003982,2504.5,2504.4,0.2796]
[1730522517649,2.61353982,2504.5,2504.4,1.42986226]
[1730522517847,2.61353982,2504.5,2504.4,1.98226002]
[1730522518049,2.61353982,2504.5,2504.4,1.42986226]
[1730522518247,2.61353982,2504.5,2504.4,1.98232491]
[1730522521453,2.61353982,2504.5,2504.4,1.42986226]
[1730522521643,3.04983982,2504.6,2504.4,1.70300958]
[1730522521844,3.05181566,2504.6,2504.5,0.27959]
[1730522522344,3.05181566,2504.6,2504.5,0.83230611]
[1730522524851,2.09271639,2504.6,2504.5,2.58743293]
[1730522525046,2.09271639,2504.6,2504.5,2.86702293]
[1730522525253,2.09271639,2504.6,2504.5,2.86709863]
[1730522525551,2.09271639,2504.6,2504.5,3.31279863]
[1730522526146,2.09271639,2504.7,2504.5,3.03320863]
[1730522526346,2.09271639,2504.7,2504.6,2.08846706]
[1730522526759,2.09271639,2504.7,2504.6,6.08126706]
[1730522527055,2.61551566,2504.9,2504.7,0.27957]
[1730522527056,2.09271639,2504.8,2504.7,0.27957]
[1730522527252,2.09271639,2504.8,2504.7,1.98261932]
[1730522527453,2.09271639,2504.8,2504.7,5.97541932]
[1730522527755,2.09271639,2504.9,2504.8,0.27956]
[1730522527951,3.90531566,2505.0,2504.9,0.27955]
[1730522528956,1.2898,2505.0,2504.9,0.27955]
[1730522529251,3.38104146,2505.0,2504.9,5.42181226]
[1730522529658,1.2898,2505.0,2504.9,5.97398807]
[1730522530155,1.2898,2505.0,2504.9,1.42981226]
[1730522530950,0.8447,2505.0,2504.9,1.98181995]
[1730522531150,0.8447,2505.0,2504.9,1.42981226]